{"text_format":"1","workbook":"xlsx","n_sheets":1,"sheets":["Indice Electrónico"],"not_rendered":{"charts":0,"images":1,"macros":1,"external_links":0,"defined_names":7,"comments":0,"pivot_tables":0},"unopened":[],"bounds":{"document_bytes":16777216,"sheet_cells":100000,"rows_first":2000,"rows_last":500,"rows_between":2000,"halvings":0,"cell_chars":16384,"cell_head_chars":4096},"cells_cut":0,"cells_raw":0,"read":"whole","date_system":"1900"}

{"sheet":"Indice Electrónico","index":0,"n_rows":38,"n_cols":11,"rows_kept":38,"cut":false,"hidden":false,"merged":[[0,0,0,10],[4,1,4,5],[5,1,5,5],[6,1,6,5],[1,7,1,10],[6,7,6,8],[6,9,6,10],[2,7,3,8],[2,9,3,10],[4,7,4,8],[4,9,4,10],[5,7,5,8],[5,9,5,10],[36,2,36,10],[8,1,8,5],[1,1,1,5],[2,1,2,5],[3,1,3,5],[7,1,7,5]]}
["ÍNDICE ELECTRÓNICO DEL EXPEDIENTE JUDICIAL "]
["Ciudad","SantiagodeCali",null,null,null,null,null,"EXPEDIENTE FÍSICO"]
["Despacho Judicial","JuzgadoDoceLaboralCircuito",null,null,null,null,null,"El expediente judicial posee documentos físicos:",null,"SI       NO X"]
["Serie o Subserie Documental","ORDINARIO LABORAL"]
["No. Radicación del Proceso","76001310501220240030500.",null,null,null,null,null,"No. de carpetas (cuadernos), legajos o tomos:"]
["Partes Procesales (Parte A)\n(demandado, procesado, accionado)","COLPENSIONES Y COLFONDOS S.A.",null,null,null,null,null,"No. de carpetas (cuadernos), legajos o tomos digitalizados:"]
["Partes Procesales (Parte B)\n(demandante, denunciante, accionante)","EDGARDO AMARIZ GARRIDO"]
["Terceros Intervinientes"]
["Cuaderno "]
[]
["Nombre Documento","Fecha Creación Documento","Fecha Incorporación Expediente","Orden Documento ","Número Páginas","Página Inicio","Página \nFin","Formato","Tamaño","Origen","Observaciones"]
["Caratula","2024-07-02","2024-07-02",1,2,{"$f":"+IF(E12=0,\"0\",\"1\")","v":"1"},{"$f":"+F12+(E12-F12)","v":2},"PDF","165 KB","Electronico"]
["AnexosDemanda","2024-07-02","2024-07-02",{"$f":"D12+1","v":2},79,{"$f":"+IF(E13=0,\"0\",(1+G12))","v":3},{"$f":"+F13+(E13-1)","v":81},"PDF","6,36 MB","Electronico"]
["Demanda","2024-07-02","2024-07-02",{"$f":"D13+1","v":3},7,{"$f":"+IF(E14=0,\"0\",(1+G13))","v":82},{"$f":"+F14+(E14-1)","v":88},"PDF","188 KB","Electronico"]
["ActaReparto","2024-07-02","2024-07-02",4,1,89,89,"PDF","50,1 KB","Electronico"]
["ConstanciaCorreo","2024-07-02","2024-07-02",5,2,90,91,"PDF","412 KB","Electronico"]
["AntecedentesDisciplinarios","2024-07-02","2024-07-02",6,3,92,94,"PDF","384 KB","Electronico"]
["AutoAdmiteDemanda","2024-07-03","2024-07-04",7,2,95,96,"PDF","94,1KB","Electronico"]
["NotificacionSkandia","2024-07-04","2024-07-04",8,5,97,101,"PDF","315KB","Electronico"]
["NotificacionColfondos","2024-07-04","2024-07-04",9,5,102,106,"PDF","312KB","Electronico"]
["NotificacionAgenteMinisterioPublico","2024-07-04","2024-07-04",10,1,107,107,"PDF",null,"Electronico"]
["NotificacionColpensiones","2024-07-04","2024-07-04",11,5,108,112,"PDF","267KB","Electronico"]
["NotificacionAgenciaNacionalJuridica","2024-07-04","2024-07-04",12,5,113,117,"PDF","212KB","Electronico"]
["ConceptoMinisterio","2024-07-12","2024-07-12",13,6,118,123,"PDF","380 KB","Electronico"]
["ContestDemanColfondosLLamamiento","2024-07-18","2024-07-18",14,477,124,600,"PDF","25,4 MB","Electronico"]
["ContestacionSkandia","2024-07-22","2024-07-22",15,76,{"$f":"+IF(E26=0,\"0\",(1+G25))","v":601},{"$f":"+F26+(E26-1)","v":676},"PDF","4,71 MB","Electronico"]
["ContestacionColpensionesSustitucionPoder","2024-07-29","2024-07-29",16,171,677,847,"PDF","14,0 MB","Electronico"]
["ExpedienteAdministrativo","2024-07-29","2024-07-29",17,8,848,855,"PDF","CARPETA ","Electronico"]
["AutoTieneContestadaDemandaAdmiteLlamamiento","2024-08-22","2024-08-22",18,2,{"$f":"+IF(E29=0,\"0\",(1+G28))","v":856},{"$f":"+F29+(E29-1)","v":857},"MP4","128 KB","Electronico"]
["NotificacionSegurosBolivar","2024-08-22","2024-08-22",19,5,858,862,"PDF","327 KB","Electronico"]
["NotificacionAllianz","2024-08-22","2024-08-22",20,6,863,868,"PDF","361 KB","Electronico"]
["ConstanciaEnvioComunicado472AxaMapre","2024-08-23","2024-08-23",21,2,869,870,"PDF","790 KB","Electronico"]
[null,null,null,null,null,"0",-1,"PDF",null,"Electronico"]
[null,null,null,null,null,"0",-1,"PDF",null,"Electronico"]
[null,null,null,null,null,"0",-1,"PDF",null,"Electronico"]
[null,null,null,null,null,"0",-1,"PDF",null,"Electronico"]
["FECHA DE CIERRE DEL EXPEDIENTE"]
["Número de cuadernos del expediente.\n(diligencie al momento de archivo definitivo)"]